fUST/lending_fUST_20241231
["ID","MTS","AMOUNT","RATE_DAILY","PERIOD"]
[347235377,1735607135540,-959.6,0.00019973,3]
[347235378,1735607135561,-500.0,0.00019973,3]
[347235379,1735607135582,-916.7,0.00019973,3]
[347235380,1735607135603,-676.79,0.00019973,3]
[347235381,1735607135625,-1029.5,0.00019973,3]
[347235382,1735607135647,-757.76,0.00019973,3]
[347235383,1735607135668,-762.38,0.00019973,3]
[347235384,1735607135690,-500.0,0.00019973,3]
[347235385,1735607135712,-3082.92,0.00019973,3]
[347235386,1735607135733,-637.48,0.00019973,3]
[347235387,1735607135753,-200.0,0.00019973,3]
[347235388,1735607135775,-336.18,0.00019973,3]
[347235389,1735607135796,-904.6,0.00019973,3]
[347235390,1735607135817,-500.0,0.00019973,3]
[347235391,1735607135843,-500.0,0.00019973,3]
[347235392,1735607135863,-570.39,0.00019973,3]
[347235393,1735607135885,-500.0,0.00019973,3]
[347235394,1735607135906,-500.0,0.00019973,3]
[347235395,1735607135927,-500.0,0.00019973,3]
[347235396,1735607135946,-152.76,0.00019974,2]
[347235397,1735607135966,-280.19527579,0.00019974,2]
[347235398,1735607135987,-586.14,0.00019974,3]
[347235399,1735607136007,-500.0,0.00019974,3]
[347235400,1735607136027,-500.0,0.00019974,3]
[347235401,1735607136048,-500.0,0.00019974,3]
[347235402,1735607136068,-500.0,0.00019974,3]
[347235403,1735607136092,-500.0,0.00019974,2]
[347235404,1735607136112,-817.39,0.00019974,3]
[347235405,1735607136132,-543.67,0.00019974,3]
[347235406,1735607136152,-500.0,0.00019974,3]
[347235407,1735607136173,-500.0,0.00019974,3]
[347235408,1735607136196,-350.25815674,0.00019974,3]
[347235409,1735607136218,-500.0,0.00019974,3]
[347235410,1735607136238,-589.83,0.00019974,3]
[347235411,1735607136258,-500.0,0.00019974,3]
[347235412,1735607136279,-500.0,0.00019974,3]
[347235413,1735607136299,-8094.75,0.00019974,3]
[347235414,1735607136320,-500.0,0.00019974,3]
[347235415,1735607136346,-500.0,0.00019974,3]
[347235416,1735607136367,-500.0,0.00019974,3]
[347235417,1735607136388,-388.77233549,0.00019974,3]
[347235418,1735607136411,-23802.7,0.00019974,3]
[347235419,1735607136432,-491.22766451,0.00019974,3]
[347235420,1735607136454,-500.0,0.00019974,3]
[347235421,1735607136475,-980.96,0.00019974,3]
[347235422,1735607136495,-500.0,0.00019974,3]
[347235423,1735607136517,-1624.59,0.00019974,3]
[347235424,1735607136538,-948.17,0.00019974,3]
[347235425,1735607136558,-500.0,0.00019974,3]
[347235426,1735607136582,-550.03,0.00019974,3]
[347235427,1735607136601,-500.0,0.00019974,3]
[347235428,1735607136623,-500.0,0.00019974,3]
[347235429,1735607136643,-293.63,0.00019974,3]
[347235430,1735607136665,-1003.25,0.00019974,3]
[347235431,1735607136685,-500.0,0.00019974,3]
[347235432,1735607136706,-500.0,0.00019975,3]
[347235433,1735607136726,-407.37,0.00019975,3]
[347235434,1735607136747,-500.0,0.00019975,3]
[347235435,1735607136768,-500.0,0.00019975,3]
[347235436,1735607136788,-500.0,0.00019975,3]
[347235437,1735607136809,-1001.81,0.00019975,3]
[347235438,1735607136833,-601.29,0.00019975,3]
[347235439,1735607136854,-500.0,0.00019975,3]
[347235440,1735607136876,-740.08,0.00019975,3]
[347235441,1735607136900,-500.0,0.00019975,3]
[347235442,1735607136920,-500.0,0.00019975,3]
[347235443,1735607136942,-2925.79,0.00019975,3]
[347235444,1735607136964,-500.0,0.00019975,3]
[347235445,1735607136985,-500.0,0.00019976,3]
[347235446,1735607137007,-500.0,0.00019976,3]
[347235447,1735607137028,-500.0,0.00019976,3]
[347235448,1735607137051,-500.0,0.00019976,3]
[347235449,1735607137074,-7224.76,0.00019976,3]
[347235450,1735607137097,-911.74,0.00019976,3]
[347235451,1735607137118,-500.0,0.00019976,3]
[347235452,1735607137139,-512.38521138,0.00019977,3]
[347235453,1735607137164,-5696.86,0.00019977,3]
[347235454,1735607137186,-572.891,0.0001998,2]
[347235455,1735607137211,-571.80787242,0.00020149,2]
[347235456,1735607137235,-1173.82,0.00020247,3]
[347235457,1735607137256,-887.15,0.00020247,3]
[347235458,1735607137278,-500.0,0.00020247,3]
[347235459,1735607137376,-934.64,0.00020247,3]
[347235460,1735607137401,-1377.83,0.00020247,3]
[347235461,1735607137425,-1054.7,0.00020247,3]
[347235462,1735607137448,-1830.6,0.00020247,3]
[347235463,1735607137469,-557.06,0.00020247,3]
[347235464,1735607137490,-959.6,0.00020247,3]
[347235465,1735607137511,-500.0,0.00020247,3]
[347235466,1735607137532,-916.7,0.00020247,3]
[347235467,1735607137552,-676.79,0.00020247,3]
[347235468,1735607137576,-1029.5,0.00020247,3]
[347235469,1735607137598,-757.76,0.00020247,3]
[347235470,1735607137621,-762.38,0.00020247,3]
[347235471,1735607137644,-2453.5555497,0.00020247,3]
[347235489,1735607432403,-300.0,0.00019772,2]
[347235491,1735607432413,-210.23969105,0.00019873,2]
[347235493,1735607432423,-300.0,0.00019972,2]
[347235495,1735607432433,-194.08,0.00019972,3]
[347235497,1735607432443,-187.76,0.00019973,3]
[347235499,1735607432452,-500.0,0.00019973,3]
[347235501,1735607432463,-500.0,0.00019973,3]
[347235503,1735607432472,-500.0,0.00019973,3]
[347235505,1735607432482,-500.0,0.00019973,3]
[347235507,1735607432491,-5492.83979941,0.00019973,3]
[347235510,1735607432503,-17318.08020059,0.00019973,3]
[347235512,1735607432513,-500.0,0.00019973,3]
[347235514,1735607432521,-919.62,0.00019973,3]
[347235516,1735607432531,-500.0,0.00019973,3]
[347235518,1735607432541,-878.5,0.00019973,3]
[347235520,1735607432550,-123.69915671,0.00019973,3]
[347235522,1735607432562,-376.30084329,0.00019973,3]
[347235524,1735607432572,-126.08537827,0.00019973,3]
[347235526,1735607432583,-618.6632773,0.00019973,3]
[347235540,1735607432707,-72.64134443,0.00019973,3]
[347235543,1735607432717,-986.6,0.00019973,3]
[347235545,1735607432726,-64.46643205,0.00019973,3]
[347235547,1735607432738,-1893.56,0.00019973,3]
[347235549,1735607432749,-268.209553,0.00019973,3]
[347235552,1735607432759,-499.563478,0.00019973,3]
[347235600,1735607438188,-254.89053695,0.00019973,3]
[347235601,1735607438198,-18.56816465,0.00019973,3]
[347235602,1735607438209,-707.62183535,0.00019973,3]
[347235603,1735607438218,-500.0,0.00019973,3]
[347235604,1735607438228,-543.67,0.00019973,3]
[347235605,1735607438237,-637.48,0.00019973,3]
[347235606,1735607438246,-500.0,0.00019973,3]
[347235607,1735607438255,-500.0,0.00019973,3]
[347235608,1735607438265,-500.0,0.00019973,3]
[347235609,1735607438274,-500.0,0.00019973,3]
[347235610,1735607438284,-1124.91,0.00019973,3]
[347235611,1735607438297,-570.39,0.00019973,3]
[347235612,1735607438306,-850.19,0.00019973,3]
[347235613,1735607438315,-500.0,0.00019973,3]
[347235614,1735607438326,-895.69,0.00019973,3]
[347235615,1735607438337,-500.0,0.00019973,3]
[347235616,1735607438346,-8094.75,0.00019973,3]
[347235617,1735607438355,-1010.76,0.00019973,3]
[347235618,1735607438365,-1754.33,0.00019973,3]
[347235619,1735607438374,-500.0,0.00019973,3]
[347235621,1735607438383,-167.2,0.00019973,3]
[347235624,1735607438392,-500.0,0.00019974,3]
[347235627,1735607438401,-960.07,0.00019974,3]
[347235629,1735607438410,-576.23,0.00019974,3]
[347235631,1735607438419,-1556.9,0.00019974,3]
[347235633,1735607438428,-500.0,0.00019974,3]
[347235635,1735607438438,-961.45,0.00019974,3]
[347235637,1735607438447,-709.24,0.00019974,3]
[347235639,1735607438457,-500.0,0.00019974,3]
[347235641,1735607438466,-500.0,0.00019975,3]
[347235643,1735607438476,-500.0,0.00019975,3]
[347235645,1735607438485,-500.0,0.00019975,3]
[347235647,1735607438494,-500.0,0.00019975,3]
[347235649,1735607438504,-5459.49,0.00019977,3]
[347235651,1735607438512,-210.23969101,0.00020025,2]
[347235653,1735607438522,-210.23969101,0.00020177,2]
[347235654,1735607438530,-500.0,0.00020246,3]
[347235655,1735607438539,-1320.42,0.00020246,3]
[347235656,1735607438548,-533.85,0.00020246,3]
[347235657,1735607438557,-904.6,0.00020247,3]
[347235658,1735607438566,-500.0,0.00020247,3]
[347235659,1735607438576,-500.0,0.00020247,3]
[347235660,1735607438585,-500.0,0.00020247,3]
[347235661,1735607438594,-500.0,0.00020247,3]
[347235662,1735607438603,-161.59346616,0.00020247,3]
[347235663,1735607438612,-22810.92,0.00020247,3]
[347235664,1735607438622,-500.0,0.00020247,3]
[347235665,1735607438630,-919.62,0.00020247,3]
[347235666,1735607438640,-500.0,0.00020247,3]
[347235667,1735607438649,-878.5,0.00020247,3]
[347235668,1735607438658,-500.0,0.00020247,3]
[347235669,1735607438667,-817.39,0.00020247,3]
[347235670,1735607438676,-986.6,0.00020247,3]
[347235671,1735607438685,-2980.69,0.00020247,3]
[347235672,1735607438694,-726.19,0.00020247,3]
[347235673,1735607438703,-500.0,0.00020247,3]
[347235674,1735607438712,-543.67,0.00020247,3]
[347235675,1735607438722,-637.48,0.00020247,3]
[347235676,1735607438731,-500.0,0.00020247,3]
[347235677,1735607438740,-448.69,0.00020247,3]
[347235678,1735607438749,-500.0,0.00020247,3]
[347235679,1735607438758,-500.0,0.00020247,3]
[347235680,1735607438768,-1124.91,0.00020247,3]
[347235681,1735607438777,-570.39,0.00020247,3]
[347235682,1735607438786,-850.19,0.00020247,3]
[347235683,1735607438795,-500.0,0.00020247,3]
[347235684,1735607438804,-895.69,0.00020247,3]
[347235685,1735607438813,-213.4733179,0.00020247,3]
[347235686,1735607438823,-8094.75,0.00020247,3]
[347235687,1735607438833,-1010.76,0.00020247,3]
[347235688,1735607438842,-1754.33,0.00020247,3]
[347235689,1735607438851,-500.0,0.00020247,3]
[347235690,1735607438860,-2925.79,0.00020248,3]
[347235691,1735607438870,-500.0,0.00020248,3]
[347235692,1735607438879,-980.96,0.00020248,3]
[347235693,1735607438888,-500.0,0.00020248,3]
[347235694,1735607438897,-948.17,0.00020248,3]
[347235695,1735607438906,-500.0,0.00020248,3]
[347235696,1735607438914,-550.03,0.00020248,3]
[347235697,1735607438923,-500.0,0.00020248,3]
[347235698,1735607438932,-500.0,0.00020248,3]
[347235699,1735607438941,-500.0,0.00020248,3]
[347235700,1735607438950,-960.07,0.00020248,3]
[347235701,1735607438959,-576.23,0.00020248,3]
[347235702,1735607438968,-1556.9,0.00020248,3]
[347235703,1735607438977,-500.0,0.00020248,3]
[347235704,1735607438987,-961.45,0.00020248,3]
[347235705,1735607438997,-709.24,0.00020248,3]
[347235706,1735607439006,-500.0,0.00020248,3]
[347235707,1735607439015,-2925.79,0.00020249,3]
[347235708,1735607439024,-500.0,0.00020249,3]
[347235709,1735607439034,-500.0,0.00020249,3]
[347235710,1735607439042,-500.0,0.00020249,3]
[347235711,1735607439051,-500.0,0.00020249,3]
[347235712,1735607439060,-500.0,0.00020249,3]
[347235713,1735607439070,-500.0,0.0002025,3]
[347235714,1735607439081,-500.0,0.0002025,3]
[347235715,1735607439090,-7224.76,0.0002025,3]
[347235716,1735607439099,-911.74,0.0002025,3]
[347235717,1735607439108,-500.0,0.0002025,3]
[347235718,1735607439118,-5459.49,0.00020251,3]
[347235719,1735607439127,-500.0,0.00020273,2]
[347235720,1735607439136,-499.0,0.00020273,2]
[347235721,1735607439146,-210.23969101,0.00020329,2]
[347235722,1735607439156,-457.44629792,0.00020421,2]
[347235723,1735607439165,-199.686853,0.00020447,2]
[347235724,1735607439175,-210.23969101,0.0002048,2]
[347235725,1735607439184,-275.65,0.000205,2]
[347235726,1735607439194,-500.0,0.0002052,3]
[347235727,1735607439203,-500.0,0.0002052,2]
[347235728,1735607439212,-500.0,0.0002052,2]
[347235729,1735607439222,-500.0,0.0002052,2]
[347235730,1735607439309,-500.0,0.0002052,2]
[347235731,1735607439319,-169.55456919,0.0002052,2]
[347235732,1735607439331,-500.0,0.0002052,2]
[347235733,1735607439340,-500.0,0.0002052,2]
[347235734,1735607439349,-331.94195083,0.0002052,2]
[347235735,1735607439358,-1320.42,0.0002052,3]
[347235736,1735607439368,-533.85,0.0002052,3]
[347235737,1735607439378,-167.889048,0.00020521,2]
[347235738,1735607439387,-500.0,0.00020521,3]
[347235739,1735607439397,-676.79,0.00020521,3]
[347235740,1735607439406,-762.38,0.00020521,3]
[347235741,1735607439415,-904.6,0.00020521,3]
[347235742,1735607439424,-500.0,0.00020521,3]
[347235743,1735607439434,-500.0,0.00020521,3]
[347235744,1735607439443,-500.0,0.00020521,3]
[347235745,1735607439452,-500.0,0.00020521,3]
[347235746,1735607439462,-22810.92,0.00020521,3]
[347235747,1735607439472,-500.0,0.00020521,3]
[347235748,1735607439480,-919.62,0.00020521,3]
[347235749,1735607439489,-500.0,0.00020521,3]
[347235750,1735607439499,-500.0,0.00020521,3]
[347235751,1735607439508,-878.5,0.00020521,3]
[347235752,1735607439517,-817.39,0.00020521,3]
[347235753,1735607439526,-986.6,0.00020521,3]
[347235754,1735607439535,-2980.69,0.00020521,3]
[347235755,1735607439544,-726.19,0.00020521,3]
[347235756,1735607439553,-500.0,0.00020521,3]
[347235757,1735607439562,-543.67,0.00020521,3]
[347235758,1735607439571,-637.48,0.00020521,3]
[347235759,1735607439581,-500.0,0.00020521,3]
[347235760,1735607439591,-500.0,0.00020521,3]
[347235761,1735607439600,-500.0,0.00020521,3]
[347235762,1735607439609,-1124.91,0.00020521,3]
[347235764,1735607439619,-570.39,0.00020521,3]
[347235765,1735607439628,-850.19,0.00020521,3]
[347235766,1735607439638,-500.0,0.00020521,3]
[347235767,1735607439647,-895.69,0.00020521,3]
[347235768,1735607439657,-8094.75,0.00020521,3]
[347235769,1735607439666,-1010.76,0.00020521,3]
[347235770,1735607439675,-1754.33,0.00020521,3]
[347235771,1735607439684,-500.0,0.00020521,3]
[347235772,1735607439693,-500.0,0.00020522,3]
[347235773,1735607439702,-980.96,0.00020522,3]
[347235775,1735607439713,-500.0,0.00020522,3]
[347235776,1735607439722,-948.17,0.00020522,3]
[347235777,1735607439732,-500.0,0.00020522,3]
[347235778,1735607439741,-550.03,0.00020522,3]
[347235779,1735607439750,-500.0,0.00020522,3]
[347235780,1735607439759,-500.0,0.00020522,3]
[347235781,1735607439769,-500.0,0.00020522,3]
[347235782,1735607439778,-960.07,0.00020522,3]
[347235783,1735607439787,-576.23,0.00020522,3]
[347235784,1735607439797,-1556.9,0.00020522,3]
[347235785,1735607439805,-500.0,0.00020522,3]
[347235786,1735607439815,-961.45,0.00020522,3]
[347235788,1735607439824,-709.24,0.00020522,3]
[347235789,1735607439835,-500.0,0.00020522,3]
[347235790,1735607439843,-2925.79,0.00020523,3]
[347235791,1735607439852,-500.0,0.00020523,3]
[347235792,1735607439861,-500.0,0.00020523,3]
[347235793,1735607439871,-500.0,0.00020523,3]
[347235794,1735607439880,-500.0,0.00020523,3]
[347235795,1735607439889,-500.0,0.00020523,3]
[347235796,1735607439898,-2925.79,0.00020524,3]
[347235797,1735607439907,-7224.76,0.00020524,3]
[347235798,1735607439917,-911.74,0.00020524,3]
[347235799,1735607439926,-500.0,0.00020524,3]
[347235800,1735607439936,-5459.49,0.00020525,3]
[347235801,1735607439946,-1990.21016621,0.00020529,3]
[347235802,1735607439955,-1990.21016621,0.00020529,3]
[347235803,1735607439964,-1990.21016621,0.00020529,3]
[347235804,1735607439973,-1990.21016621,0.00020529,3]
[347235805,1735607439983,-1990.21016621,0.00020529,3]
[347235806,1735607439993,-1990.21016621,0.00020529,3]
[347235807,1735607440003,-1990.21016621,0.00020529,3]
[347235808,1735607440012,-1990.21016621,0.00020529,3]
[347235809,1735607440020,-1990.21016621,0.00020529,3]
[347235810,1735607440030,-1990.20916621,0.00020529,3]
[347235811,1735607440038,-457.44629792,0.00020547,2]
[347235812,1735607440047,-10574.62215329,0.0002058,2]
[347235813,1735607440056,-210.23969101,0.00020632,2]
[347235814,1735607440066,-500.0,0.00020659,4]
[347235815,1735607440075,-457.44629792,0.00020673,2]
[347235816,1735607440086,-150.0,0.00020703,2]
[347235817,1735607440095,-529.0,0.00020703,2]
[347235818,1735607440105,-2352.0,0.00020703,2]
[347235819,1735607440116,-167.889048,0.00020712,2]
[347235820,1735607440129,-210.23969101,0.00020784,2]
[347235821,1735607440142,-1200.0,0.00020788,2]
[347235822,1735607440155,-500.0,0.00020794,3]
[347235823,1735607440166,-1320.42,0.00020794,3]
[347235824,1735607440177,-533.85,0.00020794,3]
[347235825,1735607440191,-500.0,0.00020795,3]
[347235826,1735607440203,-676.79,0.00020795,3]
[347235827,1735607440215,-762.38,0.00020795,3]
[347235828,1735607440227,-904.6,0.00020795,3]
[347235829,1735607440239,-500.0,0.00020795,3]
[347235830,1735607440251,-500.0,0.00020795,3]
[347235832,1735607440264,-500.0,0.00020795,3]
[347235833,1735607440277,-500.0,0.00020795,3]
[347235834,1735607440288,-22810.92,0.00020795,3]
[347235835,1735607440301,-500.0,0.00020795,3]
[347235836,1735607440313,-919.62,0.00020795,3]
[347235837,1735607440324,-500.0,0.00020795,3]
[347235838,1735607440338,-500.0,0.00020795,3]
[347235839,1735607440350,-878.5,0.00020795,3]
[347235840,1735607440362,-817.39,0.00020795,3]
[347235841,1735607440373,-986.6,0.00020795,3]
[347235842,1735607440383,-2980.69,0.00020795,3]
[347235843,1735607440395,-726.19,0.00020795,3]
[347235844,1735607440406,-433.08,0.00020795,3]
[347235845,1735607440418,-543.67,0.00020795,3]
[347235846,1735607440431,-637.48,0.00020795,3]
[347235847,1735607440444,-500.0,0.00020795,3]
[347235848,1735607440456,-500.0,0.00020795,3]
[347235849,1735607440468,-500.0,0.00020795,3]
[347235850,1735607440480,-1124.91,0.00020795,3]
[347235851,1735607440492,-570.39,0.00020795,3]
[347235852,1735607440502,-850.19,0.00020795,3]
[347235853,1735607440511,-500.0,0.00020795,3]
[347235854,1735607440521,-895.69,0.00020795,3]
[347235855,1735607440531,-8094.75,0.00020795,3]
[347235856,1735607440543,-1010.76,0.00020795,3]
[347235857,1735607440556,-1754.33,0.00020795,3]
[347235858,1735607440568,-500.0,0.00020795,3]
[347235859,1735607440582,-500.0,0.00020796,3]
[347235860,1735607440591,-980.96,0.00020796,3]
[347235861,1735607440603,-500.0,0.00020796,3]
[347235862,1735607440614,-948.17,0.00020796,3]
[347235863,1735607440627,-500.0,0.00020796,3]
[347235864,1735607440639,-550.03,0.00020796,3]
[347235865,1735607440650,-500.0,0.00020796,3]
[347235866,1735607440660,-500.0,0.00020796,3]
[347235867,1735607440671,-500.0,0.00020796,3]
[347235868,1735607440682,-960.07,0.00020796,3]
[347235869,1735607440693,-576.23,0.00020796,3]
[347235870,1735607440704,-1556.9,0.00020796,3]
[347235871,1735607440715,-500.0,0.00020796,3]
[347235872,1735607440727,-961.45,0.00020796,3]
[347235873,1735607440737,-709.24,0.00020796,3]
[347235874,1735607440748,-500.0,0.00020796,3]
[347235875,1735607440758,-2925.79,0.00020797,3]
[347235876,1735607440769,-500.0,0.00020797,3]
[347235877,1735607440780,-500.0,0.00020797,3]
[347235878,1735607440791,-500.0,0.00020797,3]
[347235879,1735607440802,-500.0,0.00020797,3]
[347235880,1735607440813,-500.0,0.00020797,3]
[347235881,1735607440824,-7224.76,0.00020798,3]
[347235882,1735607440836,-911.74,0.00020798,3]
[347235883,1735607440847,-500.0,0.00020798,3]
[347235884,1735607440858,-457.44629792,0.00020798,2]
[347235885,1735607440869,-5459.49,0.00020799,3]
[347235886,1735607440879,-352.9634651,0.00020819,2]
[347235887,1735607440890,-530.90342573,0.00020821,2]
[347235888,1735607440901,-560.013014,0.00020821,2]
[347235889,1735607440911,-560.013014,0.00020821,2]
[347235890,1735607440922,-151.0,0.00020821,2]
[347235891,1735607440934,-151.0,0.00020821,2]
[347235892,1735607440945,-210.930147,0.00020821,2]
[347235893,1735607440956,-210.930147,0.00020821,2]
[347235894,1735607440967,-167.889048,0.00020904,2]
[347235895,1735607440978,-457.44629792,0.00020924,2]
[347235896,1735607440989,-666.0,0.00020931,2]
[347235897,1735607441001,-210.23969101,0.00020936,2]
[347235898,1735607441013,-500.0,0.00020999,2]
[347235899,1735607441025,-200.02938222,0.00020999,2]
[347235900,1735607441036,-558.79356603,0.00020999,2]
[347235901,1735607441047,-2000.0,0.00021,2]
[347235902,1735607441059,-3000.0,0.00021,2]
[347235903,1735607441070,-433491.17084831,0.00021,15]
[347235904,1735607441082,-13070.79,0.00021,2]
[347235905,1735607441093,-13785.22,0.00021,2]
[347235906,1735607441105,-4639.86,0.00021,2]
[347235907,1735607441225,-344.102509,0.00021,2]
[347235908,1735607441236,-344.102509,0.00021,2]
[347235909,1735607441245,-844.992184,0.00021,2]
[347235910,1735607441254,-151.0,0.00021,2]
[347235911,1735607441263,-844.992184,0.00021,2]
[347235912,1735607441272,-151.0,0.00021,2]
[347235913,1735607441282,-151.0,0.00021,2]
[347235914,1735607441293,-151.0,0.00021,2]
[347235915,1735607441303,-151.0,0.00021,2]
[347235916,1735607441312,-151.0,0.00021,2]
[347235917,1735607441322,-151.0,0.00021,2]
[347235918,1735607441332,-628.234234,0.00021,2]
[347235919,1735607441342,-151.0,0.00021,2]
[347235920,1735607441351,-151.0,0.00021,2]
[347235921,1735607441360,-628.234234,0.00021,2]
[347235922,1735607441370,-151.0,0.00021,2]
[347235923,1735607441379,-151.0,0.00021,2]
[347235924,1735607441389,-151.0,0.00021,2]
[347235925,1735607441398,-154.867867,0.00021,2]
[347235926,1735607441408,-154.867867,0.00021,2]
[347235927,1735607441417,-154.867867,0.00021,2]
[347235928,1735607441426,-154.867867,0.00021,2]
[347235929,1735607441436,-151.0,0.00021,2]
[347235930,1735607441445,-151.0,0.00021,2]
[347235931,1735607441454,-151.0,0.00021,2]
[347235932,1735607441462,-151.0,0.00021,2]
[347235933,1735607441471,-151.0,0.00021,2]
[347235934,1735607441481,-151.0,0.00021,2]
[347235935,1735607441490,-3000.0,0.0002101,2]
[347235936,1735607441500,-3000.0,0.0002102,2]
[347235937,1735607441509,-375.0,0.0002102,4]
[347235938,1735607441519,-2925.79,0.00021024,3]
[347235939,1735607441528,-2925.79,0.00021024,3]
[347235940,1735607441537,-2925.79,0.00021024,3]
[347235941,1735607441545,-2925.79,0.00021024,3]
[347235942,1735607441555,-2925.79,0.00021024,3]
[347235943,1735607441564,-2925.79,0.00021024,3]
[347235944,1735607441573,-2925.79,0.00021024,3]
[347235945,1735607441583,-2925.79,0.00021024,3]
[347235946,1735607441592,-2925.79,0.00021024,3]
[347235947,1735607441601,-2925.79,0.00021024,3]
[347235948,1735607441610,-2925.79,0.00021024,3]
[347235949,1735607441620,-2925.79,0.00021024,3]
[347235950,1735607441629,-2925.79,0.00021024,3]
[347235951,1735607441638,-2925.79,0.00021024,3]
[347235952,1735607441647,-2925.79,0.00021024,3]
[347235953,1735607441657,-2925.79,0.00021024,3]
[347235954,1735607441666,-2925.79,0.00021024,3]
[347235955,1735607441675,-2925.93,0.00021024,3]
[347235956,1735607441685,-560.013014,0.00021025,2]
[347235957,1735607441695,-560.013014,0.00021025,2]
[347235958,1735607441704,-151.0,0.00021025,2]
[347235959,1735607441713,-151.0,0.00021025,2]
[347235960,1735607441722,-210.930147,0.00021025,2]
[347235961,1735607441732,-210.930147,0.00021025,2]
[347235962,1735607441741,-500.0,0.00021026,2]
[347235963,1735607441750,-161.10895374,0.00021029,2]
[347235964,1735607441759,-3000.0,0.0002103,2]
[347235965,1735607441769,-477.94840062,0.00021031,2]
[347235966,1735607441778,-23961.14046751,0.00021031,2]
[347235967,1735607441787,-152.76,0.00021031,2]
[347235968,1735607441798,-151.0,0.00021031,2]
[347235969,1735607441807,-151.0,0.00021031,2]
[347235970,1735607441816,-151.0,0.00021031,2]
[347235971,1735607441826,-151.0,0.00021031,2]
[347235972,1735607441835,-247.675043,0.00021031,2]
[347235973,1735607441845,-151.0,0.00021031,2]
[347235974,1735607441855,-151.0,0.00021031,2]
[347235975,1735607441864,-151.0,0.00021031,2]
[347235976,1735607441874,-151.0,0.00021031,2]
[347235977,1735607441883,-151.0,0.00021031,2]
[347235978,1735607441893,-151.0,0.00021031,2]
[347235979,1735607441903,-151.0,0.00021031,2]
[347235980,1735607441913,-151.0,0.00021031,2]
[347235981,1735607441923,-151.0,0.00021031,2]
[347235982,1735607441932,-290.572975,0.00021031,2]
[347235983,1735607441942,-302.038972,0.00021031,2]
[347235984,1735607441951,-302.038972,0.00021031,2]
[347235985,1735607441961,-302.038972,0.00021031,2]
[347235986,1735607441970,-302.038972,0.00021031,2]
[347235987,1735607441979,-302.038972,0.00021031,2]
[347235988,1735607441989,-302.038972,0.00021031,2]
[347235989,1735607441999,-302.038972,0.00021031,2]
[347235990,1735607442009,-302.038972,0.00021031,2]
[347235991,1735607442019,-302.038972,0.00021031,2]
[347235992,1735607442028,-302.038972,0.00021031,2]
[347235993,1735607442038,-302.038972,0.00021031,2]
[347235994,1735607442048,-302.038972,0.00021031,2]
[347235995,1735607442058,-302.038972,0.00021031,2]
[347235996,1735607442067,-302.038972,0.00021031,2]
[347235997,1735607442078,-302.038972,0.00021031,2]
[347235998,1735607442087,-302.038968,0.00021031,2]
[347235999,1735607442097,-198.600735,0.00021031,2]
[347236000,1735607442106,-198.600735,0.00021031,2]
[347236001,1735607442115,-198.600735,0.00021031,2]